fUSD/lending_fUSD_20250702
["ID","MTS","AMOUNT","RATE_DAILY","PERIOD"]
[368980427,1751422242282,-497.20393821,0.00016699,2]
[368980428,1751422242291,-490.0,0.00016699,2]
[368980430,1751422242301,-490.0,0.00016699,2]
[368980432,1751422242310,-490.0,0.00016699,2]
[368980434,1751422242319,-490.0,0.00016699,2]
[368980436,1751422242329,-208.77136048,0.00016699,2]
[368980438,1751422242338,-490.0,0.00016699,2]
[368980440,1751422242347,-490.0,0.00016699,2]
[368980441,1751422242359,-500.10977432,0.00016699,2]
[368980443,1751422242368,-490.0,0.00016699,2]
[368980445,1751422242378,-490.0,0.00016699,2]
[368980447,1751422242390,-503.56697735,0.00016699,2]
[368980471,1751422242614,-493.37510734,0.00016699,2]
[368980473,1751422242624,-490.0,0.00016699,2]
[368980475,1751422242633,-506.94760836,0.00016699,2]
[368980477,1751422242642,-565.68,0.00016699,2]
[368980479,1751422242652,-490.0,0.00016699,2]
[368980480,1751422242661,-490.0,0.00016699,2]
[368980482,1751422242670,-490.0,0.00016699,2]
[368980484,1751422242679,-505.16029079,0.00016699,2]
[368980486,1751422242688,-504.13875718,0.00016699,2]
[368980488,1751422242697,-490.0,0.00016699,2]
[368980490,1751422242707,-5654.48,0.00016699,2]
[368980491,1751422242715,-490.0,0.00016699,2]
[368980493,1751422242724,-490.0,0.00016699,2]
[368980495,1751422242736,-490.0,0.00016699,2]
[368980497,1751422242745,-490.0,0.00016699,2]
[368980499,1751422242754,-490.0,0.00016699,2]
[368980501,1751422242763,-490.0,0.00016699,2]
[368980503,1751422242773,-490.0,0.00016699,2]
[368980505,1751422242782,-490.0,0.00016699,2]
[368980506,1751422242791,-490.0,0.00016699,2]
[368980508,1751422242800,-490.0,0.00016699,2]
[368980510,1751422242810,-490.0,0.00016699,2]
[368980512,1751422242819,-491.19476011,0.00016699,2]
[368980514,1751422242828,-1245.32,0.00016699,2]
[368980516,1751422242837,-1997.85,0.00016699,2]
[368980517,1751422242846,-490.0,0.00016699,2]
[368980519,1751422242855,-1406.26,0.00016699,2]
[368980521,1751422242864,-495.09361849,0.00016699,2]
[368980523,1751422242873,-490.0,0.00016699,2]
[368980525,1751422242883,-490.0,0.00016699,2]
[368980527,1751422242892,-490.0,0.00016699,2]
[368980529,1751422242902,-490.0,0.00016699,2]
[368980531,1751422242911,-490.0,0.00016699,2]
[368980532,1751422242921,-609.78,0.00016699,2]
[368980534,1751422242930,-495.67047558,0.00016699,2]
[368980536,1751422242939,-490.0,0.00016699,2]
[368980538,1751422242949,-490.0,0.00016699,2]
[368980540,1751422242958,-515.94345128,0.00016699,2]
[368980542,1751422242967,-958.74,0.00016699,2]
[368980544,1751422242977,-490.0,0.00016699,2]
[368980545,1751422242986,-490.0,0.00016699,2]
[368980547,1751422242995,-3257.49,0.00016699,2]
[368980549,1751422243004,-490.0,0.00016699,2]
[368980551,1751422243014,-622.34886035,0.00016699,2]
[368980553,1751422243027,-490.0,0.00016699,2]
[368980555,1751422243036,-490.0,0.00016699,2]
[368980557,1751422243046,-492.50329168,0.00016699,2]
[368980559,1751422243057,-490.0,0.00016699,2]
[368980561,1751422243066,-490.0,0.00016699,2]
[368980562,1751422243076,-491.1156139,0.00016699,2]
[368980564,1751422243085,-1699.22,0.00016699,2]
[368980566,1751422243095,-490.0,0.00016699,2]
[368980568,1751422243105,-542.17,0.00016699,2]
[368980570,1751422243115,-523.68,0.00016699,2]
[368980571,1751422243125,-503.17691326,0.00016699,2]
[368980573,1751422243136,-654.96,0.00016699,2]
[368980575,1751422243147,-490.0,0.00016699,2]
[368980577,1751422243157,-490.0,0.00016699,2]
[368980579,1751422243168,-2791.78,0.00016699,2]
[368980581,1751422243178,-490.0,0.00016699,2]
[368980583,1751422243188,-320.40437651,0.00016699,2]
[368980585,1751422243198,-490.0,0.00016699,2]
[368980586,1751422243207,-490.0,0.00016699,2]
[368980588,1751422243217,-598.7,0.00016699,2]
[368980590,1751422243226,-490.0,0.00016699,2]
[368980592,1751422243235,-490.0,0.00016699,2]
[368980594,1751422243245,-490.0,0.00016699,2]
[368980596,1751422243254,-490.0,0.00016699,2]
[368980598,1751422243264,-490.0,0.00016699,2]
[368980600,1751422243280,-490.0,0.00016699,2]
[368980602,1751422243291,-490.0,0.00016699,2]
[368980604,1751422243300,-490.0,0.00016699,2]
[368980605,1751422243309,-490.0,0.00016699,2]
[368980606,1751422243319,-509.88097459,0.00016699,2]
[368980607,1751422243329,-490.0,0.00016699,2]
[368980608,1751422243337,-607.87,0.00016699,2]
[368980609,1751422243346,-490.0,0.00016699,2]
[368980610,1751422243358,-490.0,0.00016699,2]
[368980611,1751422243366,-1070.48,0.00016699,2]
[368980612,1751422243375,-490.0,0.00016699,2]
[368980613,1751422243384,-490.0,0.00016699,2]
[368980614,1751422243394,-490.0,0.00016699,2]
[368980615,1751422243404,-742.93,0.00016699,2]
[368980616,1751422243414,-1775.7,0.00016699,2]
[368980617,1751422243423,-490.0,0.00016699,2]
[368980618,1751422243433,-490.0,0.00016699,2]
[368980619,1751422243443,-490.0,0.00016699,2]
[368980620,1751422243452,-490.0,0.00016699,2]
[368980622,1751422243461,-490.0,0.00016699,2]
[368980623,1751422243471,-1355.19,0.00016699,2]
[368980625,1751422243480,-596.94,0.00016699,2]
[368980627,1751422243489,-490.0,0.00016699,2]
[368980629,1751422243498,-490.0,0.00016699,2]
[368980631,1751422243508,-490.0,0.00016699,2]
[368980633,1751422243517,-490.0,0.00016699,2]
[368980635,1751422243528,-490.0,0.00016699,2]
[368980637,1751422243537,-1328.23,0.00016699,2]
[368980639,1751422243547,-490.0,0.00016699,2]
[368980641,1751422243556,-490.0,0.00016699,2]
[368980643,1751422243566,-10472.3271363,0.000167,2]
[368980645,1751422243575,-500.0,0.000167,2]
[368980647,1751422243585,-500.0,0.000167,2]
[368980649,1751422243596,-215.55321339,0.000167,2]
[368980651,1751422243607,-500.0,0.000167,2]
[368980653,1751422243616,-500.0,0.000167,2]
[368980655,1751422243625,-187.70659235,0.000167,2]
[368980657,1751422243634,-500.0,0.000167,2]
[368980659,1751422243644,-1003.36,0.000167,2]
[368980661,1751422243653,-1610.43555126,0.00016701,2]
[368980698,1751422243991,-4350.8,0.00016701,2]
[368980744,1751422244537,-753.0,0.00016374,2]
[368980745,1751422244546,-490.0,0.00016699,2]
[368980746,1751422244556,-20514.0598986,0.00016701,2]
[368980750,1751422245609,-262.97013897,0.00016698,2]
[368980751,1751422259129,559.0,0.00013338,2]
[368980752,1751422300942,789.64460407,0.0002739,120]
[368980753,1751422303273,808.44867085,0.0002739,120]
[368980756,1751422464389,154.26,0.00013699,2]
[368980768,1751422586289,412.55959179,0.00016849,30]
[368980769,1751422586401,412.55959179,0.00016932,30]
[368980770,1751422586559,412.55959179,0.00016986,30]
[368980771,1751422586668,412.55959179,0.00017068,30]
[368980772,1751422586790,412.55959179,0.00017123,30]
[368980773,1751422586910,412.55959179,0.00017178,30]
[368980774,1751422587024,412.55959179,0.0001726,30]
[368980775,1751422587177,412.55959179,0.00017315,30]
[368980776,1751422587280,412.55959179,0.00017397,30]
[368980777,1751422587410,412.55959179,0.00017452,30]
[368980778,1751422587538,412.55959179,0.00017534,30]
[368980779,1751422587665,412.55959179,0.00017589,30]
[368981005,1751422822488,510.9978128,0.000165,120]
[368981022,1751423234622,334.08321196,0.0002301,120]
[368981052,1751423319378,354.49428736,0.000246,120]
[368981064,1751423431936,-617.9141118,0.0001495,2]
[368981065,1751423431948,-33.0858882,0.0001495,2]
[368981066,1751423431958,-250.0,0.00015,2]
[368981067,1751423431967,-551.0,0.00015171,2]
[368981068,1751423431977,-205.32766538,0.00015235,2]
[368981069,1751423431986,-651.0,0.00015299,2]
[368981070,1751423431994,-209.66386872,0.00015306,2]
[368981071,1751423432007,-335.70191435,0.00015306,2]
[368981072,1751423432088,-16.63421693,0.00015306,2]
[368981073,1751423432097,-221.7,0.00015335,2]
[368981075,1751423432107,-1807.97,0.00015351,2]
[368981077,1751423432116,-168.0,0.00015389,2]
[368981079,1751423432125,-5588.01,0.000154,2]
[368981081,1751423432134,-200.0,0.00015429,7]
[368981083,1751423432143,-1000.0,0.00015502,2]
[368981085,1751423432152,-566.94,0.00015548,2]
[368981087,1751423432161,-200.0,0.00015638,2]
[368981089,1751423432170,-167.03,0.00015675,2]
[368981091,1751423432179,-250.0,0.00015726,2]
[368981092,1751423432188,-378.51180253,0.0001587,2]
[368981094,1751423432197,-207.4,0.00015871,2]
[368981096,1751423432207,-2058.12251748,0.000159,2]
[368981098,1751423432217,-500.0,0.00015945,2]
[368981099,1751423432226,-562.0,0.00015953,2]
[368981100,1751423432234,-562.0,0.00016321,2]
[368981101,1751423432243,-290.531965,0.00016372,2]
[368981102,1751423432253,-2000.0,0.00016444,5]
[368981103,1751423432262,-550.0,0.00016455,2]
[368981104,1751423432271,-168.0,0.00016455,2]
[368981105,1751423432280,-151.0,0.0001649,2]
[368981106,1751423432289,-153.60250212,0.0001649,2]
[368981107,1751423432298,-151.0,0.0001649,2]
[368981108,1751423432308,-151.0,0.0001649,2]
[368981109,1751423432317,-151.0,0.0001649,2]
[368981110,1751423432327,-151.0,0.0001649,2]
[368981111,1751423432336,-151.0,0.0001649,2]
[368981112,1751423432346,-151.0,0.0001649,2]
[368981113,1751423432356,-155.774154,0.0001649,2]
[368981114,1751423432366,-836.11932155,0.00016493,2]
[368981115,1751423432375,-2500.0,0.000165,2]
[368981116,1751423432384,-2500.0,0.000165,2]
[368981117,1751423432393,-2500.0,0.000165,2]
[368981118,1751423432403,-2000.0,0.000165,5]
[368981119,1751423432412,-200.0,0.00016578,2]
[368981120,1751423432422,-205.32766537,0.00016591,2]
[368981121,1751423432431,-1250.16348427,0.000166,2]
[368981122,1751423432440,-2616.17673798,0.00016601,2]
[368981123,1751423432450,-178.92456055,0.00016601,2]
[368981124,1751423432459,-195.6201,0.00016612,2]
[368981125,1751423432468,-500.0,0.00016628,2]
[368981126,1751423432477,-500.0,0.00016628,2]
[368981127,1751423432486,-500.0,0.00016628,2]
[368981128,1751423432495,-500.0,0.00016628,2]
[368981129,1751423432504,-500.0,0.00016628,2]
[368981130,1751423432513,-500.0,0.00016628,2]
[368981131,1751423432523,-500.0,0.00016628,2]
[368981132,1751423432532,-500.0,0.00016628,2]
[368981133,1751423432541,-500.0,0.00016628,2]
[368981134,1751423432550,-500.0,0.00016628,2]
[368981135,1751423432559,-500.0,0.00016628,2]
[368981136,1751423432568,-500.0,0.00016628,2]
[368981137,1751423432577,-500.0,0.00016628,2]
[368981138,1751423432586,-500.0,0.00016628,2]
[368981139,1751423432595,-500.0,0.00016628,2]
[368981140,1751423432604,-500.0,0.00016628,2]
[368981141,1751423432614,-500.0,0.00016628,2]
[368981142,1751423432623,-500.0,0.00016628,2]
[368981143,1751423432632,-117.50824957,0.00016628,2]
[368981144,1751423432668,-283.36167208,0.00016628,2]
[368981145,1751423432679,-99.13007835,0.00016628,2]
[368981146,1751423432689,-500.0,0.00016628,2]
[368981147,1751423432699,-42.19203654,0.00016628,2]
[368981149,1751423437842,-177.84,0.0001584,2]
[368981150,1751423437852,-107.80796346,0.00016628,2]
[368981151,1751423437862,-150.0,0.00016628,2]
[368981152,1751423437871,-54.35203654,0.00016628,2]
[368981349,1751423439901,-95.64796346,0.00016628,2]
[368981351,1751423439910,-150.94188043,0.00016628,2]
[368981353,1751423439920,-191.27916287,0.00016628,2]
[368981383,1751423440317,-308.72083713,0.00016628,2]
[368981385,1751423440326,-53.86716288,0.00016628,2]
[368981989,1751423462394,512.0,0.00027397,120]
[368981990,1751423526626,154.26,0.00013699,2]
[368981995,1751423622555,421.0,0.0002739,120]
[368981999,1751423678908,647.11365331,0.0002739,120]
[368982000,1751423739163,302.0,0.00027397,120]
[368982038,1751424084259,200.0,0.00027,120]
[368982049,1751424200506,500.0,0.00027397,120]
[368982093,1751424597011,154.26,0.00013699,2]
[368982094,1751424631941,-250.0,0.00015,2]
[368982095,1751424631951,-200.0,0.00015044,2]
[368982096,1751424631961,-591.36,0.00015082,2]
[368982097,1751424631970,-203.22,0.00015165,2]
[368982098,1751424631980,-250.0,0.00015298,2]
[368982099,1751424631989,-200.0,0.00015493,7]
[368982100,1751424631998,-126.90212117,0.00015596,2]
[368982101,1751424632045,-1487.32787883,0.00015596,2]
[368982102,1751424632055,-1000.0,0.00015605,2]
[368982103,1751424632064,-168.0,0.00015625,2]
[368982104,1751424632074,-250.0,0.00015644,2]
[368982105,1751424632083,-1200.0,0.00015676,2]
[368982106,1751424632093,-23900.0,0.00015677,2]
[368982107,1751424632103,-200.0,0.00015727,2]
[368982108,1751424632112,-207.4,0.00015871,2]
[368982109,1751424632121,-2500.0,0.000159,2]
[368982110,1751424632131,-2782.11514021,0.000159,2]
[368982111,1751424632140,-1204.08472078,0.00015908,2]
[368982112,1751424632149,-502.60377095,0.00015973,2]
[368982113,1751424632159,-300.0,0.00015989,2]
[368982114,1751424632171,-4522.61143086,0.0001599,2]
[368982115,1751424632181,-151.0,0.0001599,2]
[368982116,1751424632190,-151.0,0.0001599,2]
[368982117,1751424632199,-225.5086599,0.0001599,2]
[368982118,1751424632210,-563.53385334,0.0001599,2]
[368982119,1751424632219,-151.0,0.0001599,2]
[368982120,1751424632228,-151.0,0.0001599,2]
[368982121,1751424632238,-151.0,0.0001599,2]
[368982122,1751424632247,-151.0,0.0001599,2]
[368982123,1751424632256,-151.0,0.0001599,2]
[368982124,1751424632265,-151.0,0.0001599,2]
[368982125,1751424632274,-151.0,0.0001599,2]
[368982126,1751424632283,-151.0,0.0001599,2]
[368982127,1751424632292,-151.0,0.0001599,2]
[368982128,1751424632300,-151.0,0.0001599,2]
[368982129,1751424632312,-151.0,0.0001599,2]
[368982131,1751424632322,-151.0,0.0001599,2]
[368982133,1751424632332,-93897.20152371,0.00015999,2]
[368982135,1751424632341,-5838.44678722,0.00015999,2]
[368982137,1751424632350,-500.0,0.00016,2]
[368982139,1751424632359,-33549.21475243,0.00016,2]
[368982148,1751424632443,-400.0,0.00016,2]
[368982150,1751424632454,-1002.41247403,0.00016,2]
[368982153,1751424632465,-415.87469936,0.00016,2]
[368982155,1751424632478,-2560.36737096,0.00016,2]
[368982162,1751424632540,-250.0,0.00016,2]
[368982165,1751424632562,-103083.67373871,0.00016,2]
[368982167,1751424632571,-168.0,0.00016108,2]
[368982169,1751424632581,-167.31,0.00016138,2]
[368982171,1751424632590,-799.0979602,0.00016263,2]
[368982173,1751424632600,-172.0,0.00016301,2]
[368982175,1751424632611,-10246.003112,0.00016376,2]
[368982177,1751424632622,-172.0,0.00016396,2]
[368982179,1751424632631,-514.31081727,0.00016438,2]
[368982181,1751424632640,-492.64656668,0.00016438,2]
[368982183,1751424632649,-588.67,0.00016438,2]
[368982184,1751424632658,-490.0,0.00016438,2]
[368982186,1751424632667,-490.0,0.00016438,2]
[368982188,1751424632677,-738.02,0.00016438,2]
[368982190,1751424632686,-490.0,0.00016438,2]
[368982192,1751424632696,-490.0,0.00016438,2]
[368982194,1751424632705,-490.0,0.00016438,2]
[368982196,1751424632715,-490.0,0.00016438,2]
[368982198,1751424632724,-490.0,0.00016438,2]
[368982200,1751424632733,-810.31,0.00016438,2]
[368982202,1751424632743,-490.0,0.00016438,2]
[368982204,1751424632752,-490.0,0.00016438,2]
[368982206,1751424632762,-498.9522535,0.00016438,2]
[368982208,1751424632771,-490.0,0.00016438,2]
[368982210,1751424632782,-490.0,0.00016438,2]
[368982212,1751424632791,-490.0,0.00016438,2]
[368982214,1751424632800,-511.52179027,0.00016438,2]
[368982216,1751424632810,-490.0,0.00016438,2]
[368982218,1751424632819,-502.91873604,0.00016438,2]
[368982220,1751424632828,-490.0,0.00016438,2]
[368982222,1751424632838,-490.0,0.00016438,2]
[368982224,1751424632847,-849.97,0.00016438,2]
[368982226,1751424632857,-490.0,0.00016438,2]
[368982228,1751424632867,-490.0,0.00016438,2]
[368982230,1751424632876,-490.0,0.00016438,2]
[368982231,1751424632885,-490.0,0.00016438,2]
[368982232,1751424632895,-490.0,0.00016438,2]
[368982233,1751424632905,-490.0,0.00016438,2]
[368982234,1751424632915,-490.0,0.00016438,2]
[368982235,1751424632925,-490.0,0.00016438,2]
[368982236,1751424632935,-761.76,0.00016438,2]
[368982237,1751424632945,-1897.6,0.00016438,2]
[368982238,1751424632954,-2283.86,0.00016438,2]
[368982239,1751424632963,-695.16,0.00016438,2]
[368982240,1751424632972,-490.55433484,0.00016438,2]
[368982241,1751424632983,-490.0,0.00016438,2]
[368982242,1751424632992,-153.99728685,0.00016438,2]
[368982243,1751424633001,-490.63977985,0.00016438,2]
[368982244,1751424633011,-493.31309227,0.00016438,2]
[368982245,1751424633020,-446.9172589,0.00016438,2]
[368982246,1751424633030,-287.728041,0.00016438,2]
[368982247,1751424633039,-490.0,0.00016438,2]
[368982248,1751424633049,-796.46,0.00016438,2]
[368982249,1751424633059,-545.85,0.00016438,2]
[368982250,1751424633069,-490.0,0.00016438,2]
[368982251,1751424633079,-500.0,0.000165,3]
[368982252,1751424633088,-250.0,0.000165,2]
[368982253,1751424633098,-1454.7396136,0.00016506,2]
[368982254,1751424633107,-172.0,0.00016509,2]
[368982255,1751424633117,-836.11932155,0.0001653,2]
[368982256,1751424633126,-274.00956,0.0001653,2]
[368982257,1751424633138,-151.0,0.00016538,2]
[368982258,1751424633147,-1204.08472071,0.00016563,2]
[368982259,1751424633157,-200.0,0.00016573,2]
[368982260,1751424633169,-172.0,0.00016592,2]
[368982261,1751424633179,-3178.50106603,0.00016598,2]
[368982262,1751424633189,-4106.2531,0.00016599,2]
[368982263,1751424633198,-1000.0,0.00016599,2]
[368982264,1751424633208,-555.0384,0.00016599,2]
[368982265,1751424633217,-176.41324,0.00016599,2]
[368982266,1751424633227,-3798.38462659,0.000166,2]
[368982267,1751424633236,-163.54370938,0.00016601,2]
[368982268,1751424633246,-1454.7396136,0.00016605,2]
[368982269,1751424633255,-500.0,0.00016623,2]
[368982270,1751424633265,-500.0,0.00016623,2]
[368982271,1751424633274,-500.0,0.00016623,2]
[368982272,1751424633284,-500.0,0.00016623,2]
[368982273,1751424633294,-500.0,0.00016623,2]
[368982274,1751424633303,-500.0,0.00016623,2]
[368982275,1751424633313,-500.0,0.00016623,2]
[368982276,1751424633322,-500.0,0.00016623,2]
[368982277,1751424633331,-500.0,0.00016623,2]
[368982278,1751424633341,-500.0,0.00016623,2]
[368982279,1751424633350,-500.0,0.00016623,2]
[368982280,1751424633360,-500.0,0.00016623,2]
[368982281,1751424633369,-500.0,0.00016623,2]
[368982282,1751424633379,-500.0,0.00016623,2]
[368982283,1751424633388,-500.0,0.00016623,2]
[368982284,1751424633397,-500.0,0.00016623,2]
[368982285,1751424633407,-500.0,0.00016623,2]
[368982286,1751424633416,-500.0,0.00016623,2]
[368982287,1751424633426,-500.0,0.00016623,2]
[368982288,1751424633435,-500.0,0.00016623,2]
[368982289,1751424633445,-500.0,0.00016623,2]
[368982290,1751424633455,-500.0,0.00016623,2]
[368982291,1751424633465,-500.0,0.00016623,2]
[368982292,1751424633474,-500.0,0.00016623,2]
[368982293,1751424633484,-500.0,0.00016623,2]
[368982294,1751424633494,-500.0,0.00016623,2]
[368982295,1751424633503,-500.0,0.00016623,2]
[368982296,1751424633512,-500.0,0.00016623,2]
[368982297,1751424633521,-500.0,0.00016623,2]
[368982298,1751424633531,-500.0,0.00016623,2]
[368982299,1751424633540,-500.0,0.00016623,2]
[368982300,1751424633549,-500.0,0.00016623,2]
[368982301,1751424633558,-500.0,0.00016623,2]
[368982302,1751424633567,-500.0,0.00016623,2]
[368982303,1751424633577,-500.0,0.00016623,2]
[368982304,1751424633586,-500.0,0.00016623,2]
[368982305,1751424633595,-500.0,0.00016623,2]
[368982306,1751424633604,-500.0,0.00016623,2]
[368982307,1751424633614,-500.0,0.00016623,2]
[368982308,1751424633624,-500.0,0.00016623,2]
[368982309,1751424633633,-500.0,0.00016623,2]
[368982310,1751424633643,-500.0,0.00016623,2]
[368982311,1751424633652,-500.0,0.00016623,2]
[368982312,1751424633661,-500.0,0.00016623,2]
[368982313,1751424633671,-500.0,0.00016623,2]
[368982314,1751424633680,-500.0,0.00016623,2]
[368982315,1751424633689,-500.0,0.00016623,2]
[368982316,1751424633699,-500.0,0.00016623,2]
[368982317,1751424633709,-500.0,0.00016623,2]
[368982318,1751424633718,-500.0,0.00016623,2]
[368982319,1751424633727,-500.0,0.00016623,2]
[368982320,1751424633738,-500.0,0.00016623,2]
[368982321,1751424633747,-500.0,0.00016623,2]
[368982322,1751424633757,-500.0,0.00016623,2]
[368982323,1751424633767,-500.0,0.00016623,2]
[368982324,1751424633776,-500.0,0.00016623,2]
[368982325,1751424633786,-500.0,0.00016623,2]
[368982326,1751424633795,-500.0,0.00016623,2]
[368982327,1751424633805,-500.0,0.00016623,2]
[368982328,1751424633815,-500.0,0.00016623,2]
[368982329,1751424633825,-500.0,0.00016623,2]
[368982330,1751424633834,-500.0,0.00016623,2]
[368982331,1751424633845,-500.0,0.00016623,2]
[368982332,1751424633855,-500.0,0.00016623,2]
[368982333,1751424633864,-500.0,0.00016623,2]
[368982334,1751424633874,-500.0,0.00016623,2]
[368982335,1751424633884,-500.0,0.00016623,2]
[368982336,1751424633895,-500.0,0.00016623,2]
[368982337,1751424633904,-500.0,0.00016623,2]
[368982338,1751424633914,-500.0,0.00016623,2]
[368982339,1751424633923,-500.0,0.00016623,2]
[368982340,1751424633933,-500.0,0.00016623,2]
[368982341,1751424633943,-516.8689,0.00016623,2]
[368982342,1751424633953,-150.0,0.00016628,2]
[368982343,1751424633962,-272.99783761,0.00016628,2]
[368982344,1751424633972,-500.0,0.00016628,2]
[368982345,1751424633982,-500.0,0.00016628,2]
[368982346,1751424633991,-1018.0,0.00016628,2]
[368982347,1751424634001,-519.0,0.00016628,2]
[368982348,1751424634011,-150.55784229,0.00016628,2]
[368982349,1751424634020,-151.92546906,0.00016628,2]
[368982350,1751424634030,-150.0,0.00016628,2]
[368982351,1751424634039,-268.04237834,0.00016628,2]
[368982352,1751424634049,-150.0,0.00016628,2]
[368982353,1751424634059,-150.0,0.00016628,2]
[368982354,1751424634068,-500.0,0.00016628,2]
[368982355,1751424634078,-2490.56941,0.00016628,2]
[368982356,1751424634087,-500.0,0.00016628,2]
[368982357,1751424634096,-150.0,0.00016628,2]
[368982358,1751424634105,-500.0,0.00016628,2]
[368982359,1751424634115,-500.0,0.00016628,2]
[368982360,1751424634124,-500.0,0.00016628,2]
[368982361,1751424634134,-150.0,0.00016628,2]
[368982362,1751424634145,-2782.11513999,0.00016659,2]
[368982363,1751424634154,-994.15345296,0.0001666,2]
[368982364,1751424634164,-500.0,0.00016673,2]
[368982365,1751424634177,-501.80053445,0.00016673,2]
[368982366,1751424634186,-161.08456876,0.00016673,2]
[368982367,1751424634196,-510.80031027,0.00016673,2]
[368982368,1751424634206,-500.39793991,0.00016673,2]
[368982369,1751424634216,-159.86285611,0.00016673,2]
[368982370,1751424634226,-500.0,0.00016673,2]
[368982371,1751424634236,-159.86305481,0.00016673,2]
[368982372,1751424634245,-159.86378646,0.00016673,2]
[368982373,1751424634255,-500.0,0.00016673,2]
[368982374,1751424634264,-500.0,0.00016673,2]
[368982375,1751424634274,-500.0,0.00016673,2]
[368982376,1751424634284,-160.27487777,0.00016673,2]
[368982377,1751424634294,-501.91293794,0.00016673,2]
[368982378,1751424634304,-500.0,0.00016691,2]
[368982379,1751424634313,-150.0,0.00016691,2]
[368982380,1751424634323,-150.99606379,0.00016691,2]
[368982381,1751424634332,-150.0,0.00016691,2]
[368982382,1751424634342,-150.0,0.00016691,2]
[368982383,1751424634351,-151.06722554,0.00016691,2]
[368982384,1751424634361,-150.0,0.00016691,2]
[368982385,1751424634370,-150.35644987,0.00016691,2]
[368982386,1751424634379,-150.0,0.00016691,2]
[368982387,1751424634388,-151.06274292,0.00016691,2]
[368982388,1751424634397,-490.0,0.00016697,2]
[368982389,1751424634407,-490.0,0.00016697,2]
[368982390,1751424634416,-490.0,0.00016697,2]
[368982391,1751424634425,-490.0,0.00016697,2]
[368982392,1751424634434,-490.0,0.00016697,2]
[368982393,1751424634445,-490.0,0.00016697,2]
[368982394,1751424634454,-490.0,0.00016697,2]
[368982395,1751424634464,-490.0,0.00016697,2]
[368982396,1751424634474,-490.0,0.00016697,2]
[368982397,1751424634484,-490.0,0.00016697,2]
[368982398,1751424634493,-490.0,0.00016697,2]
[368982399,1751424634503,-490.0,0.00016697,2]
[368982400,1751424634512,-490.0,0.00016697,2]
[368982401,1751424634521,-492.35468301,0.00016697,2]
[368982402,1751424634530,-491.88013566,0.00016697,2]
[368982403,1751424634539,-490.0,0.00016697,2]
[368982404,1751424634548,-490.0,0.00016697,2]
[368982405,1751424634558,-490.0,0.00016697,2]
[368982406,1751424634568,-490.0,0.00016697,2]
[368982407,1751424634578,-490.0,0.00016697,2]
[368982408,1751424634588,-490.0,0.00016697,2]
[368982409,1751424634597,-493.8628119,0.00016697,2]
[368982410,1751424634607,-490.0,0.00016697,2]
[368982411,1751424634616,-490.0,0.00016697,2]
[368982412,1751424634627,-490.0,0.00016697,2]
[368982413,1751424634636,-490.0,0.00016697,2]
[368982414,1751424634645,-490.0,0.00016697,2]
[368982415,1751424634654,-490.0,0.00016697,2]
[368982416,1751424634663,-490.0,0.00016697,2]